bitfinex-derivatives/quotes_ETHF0:USTF0_20250918
["timestamp","ask_amount","ask_price","bid_price","bid_amount"]
[1758163819711,0.93682415,4616.8,4616.7,1.47469459]
[1758163820715,0.93682415,4616.8,4616.7,0.7178]
[1758163820915,0.93682415,4616.8,4616.7,1.47469459]
[1758163821415,0.74552415,4616.8,4616.7,1.47469459]
[1758163822015,0.74552415,4616.8,4616.7,0.7178]
[1758163822218,0.74552415,4616.8,4616.7,1.47469459]
[1758163823616,0.54592415,4616.8,4616.7,1.47469459]
[1758163825216,0.54592415,4616.8,4616.7,2.23158918]
[1758163825721,0.54592415,4616.8,4616.7,1.47469459]
[1758163826013,0.218,4617.1,4617.0,0.5259]
[1758163826014,0.4176,4617.1,4617.0,0.5259]
[1758163826315,1.19645446,4617.1,4617.0,1.59259459]
[1758163826522,0.97845446,4617.1,4617.0,1.59259459]
[1758163826717,1.16975446,4617.1,4617.0,1.59259459]
[1758163828213,1.38775446,4617.1,4617.0,1.59259459]
[1758163828616,1.69345446,4617.1,4617.0,1.59259459]
[1758163830211,1.16975446,4617.1,4617.0,1.59259459]
[1758163830420,1.38775446,4617.1,4617.0,1.59259459]
[1758163831221,1.69345446,4617.1,4617.0,1.59259459]
[1758163833418,1.69473668,4617.1,4617.0,1.59259459]
[1758163835223,1.47673668,4617.1,4617.0,1.59259459]
[1758163835421,1.69473668,4617.1,4617.0,1.59259459]
[1758163836025,1.38903668,4617.1,4617.0,1.59259459]
[1758163836325,1.55461914,4617.9,4617.1,0.3013]
[1758163836326,0.2974,4617.9,4617.1,0.3013]
[1758163836528,0.2974,4617.9,4617.8,2.22378918]
[1758163836529,0.696,4617.9,4617.8,2.22378918]
[1758163836823,0.696,4617.9,4617.8,1.46689459]
[1758163837013,0.914,4617.9,4617.8,1.46689459]
[1758163837424,0.696,4617.9,4617.8,1.46689459]
[1758163838526,0.4993,4617.9,4617.8,1.46689459]
[1758163842922,0.4993,4617.9,4617.8,0.71]
[1758163845633,0.696,4617.9,4617.8,0.71]
[1758163847125,1.45289459,4617.9,4617.8,0.71]
[1758163847429,1.45289459,4617.9,4617.8,0.5009]
[1758163848132,0.696,4617.9,4617.8,0.5009]
[1758163848428,0.696,4617.7,4617.6,0.0216]
[1758163848729,2.21201913,4617.7,4617.6,0.0216]
[1758163848930,6.42857913,4617.7,4617.6,0.0216]
[1758163849734,6.21201913,4617.7,4617.6,0.0216]
[1758163849930,6.43001913,4617.7,4617.6,0.0216]
[1758163850637,6.43010976,4617.7,4617.6,0.0216]
[1758163850937,6.43010976,4617.7,4616.6,3.2078]
[1758163850938,0.696,4616.9,4616.6,3.2078]
[1758163851137,2.21210976,4616.9,4616.6,3.2078]
[1758163851332,2.21210976,4616.9,4616.3,0.3013]
[1758163851531,2.96900435,4616.9,4616.3,0.3013]
[1758163852135,6.96900435,4616.9,4616.1,3.2078]
[1758163852938,6.21210976,4616.9,4616.2,0.3013]
[1758163853338,6.21210976,4616.9,4616.1,3.2078]
[1758163853639,6.21210976,4616.9,4616.4,0.3013]
[1758163854237,6.21210976,4616.9,4616.1,3.2078]
[1758163854238,1.17911517,4616.9,4616.8,1.64009459]
[1758163854441,1.47651517,4616.9,4616.8,0.8832]
[1758163854633,1.67321517,4616.9,4616.8,0.8832]
[1758163854835,1.45939424,4616.9,4616.8,0.8832]
[1758163855039,2.21628883,4616.9,4616.8,0.8832]
[1758163855636,2.21636116,4616.9,4616.8,0.8832]
[1758163856338,1.99836116,4616.9,4616.8,0.8832]
[1758163856542,2.21636116,4616.9,4616.8,0.8832]
[1758163856734,2.21636116,4616.9,4616.8,0.6741]
[1758163857641,2.21636116,4616.9,4616.8,0.1732]
[1758163857839,2.97325575,4616.9,4616.8,0.1732]
[1758163858038,3.18702136,4616.9,4616.8,0.1732]
[1758163858938,2.43012677,4616.9,4616.8,0.1732]
[1758163859138,1.67323218,4616.9,4616.8,0.1732]
[1758163859335,2.21636116,4616.9,4616.8,0.6821]
[1758163859530,2.21636116,4616.9,4616.8,0.8812]
[1758163859531,1.16206657,4616.9,4616.8,0.8812]
[1758163859731,2.21476116,4616.9,4616.8,0.8812]
[1758163860141,2.21476116,4616.9,4616.8,0.708]
[1758163860336,1.99676116,4616.9,4616.8,0.708]
[1758163860541,2.21476116,4616.9,4616.8,0.708]
[1758163861237,2.21476116,4616.9,4616.8,0.2074]
[1758163861639,2.97165575,4616.9,4616.5,0.3015]
[1758163861834,1.16689459,4616.6,4616.5,0.5089]
[1758163862146,2.22616116,4616.6,4616.5,0.708]
[1758163864948,0.1209,4616.5,4616.3,0.1732]
[1758163865251,2.00816116,4616.4,4616.3,0.1732]
[1758163868253,2.00103336,4616.4,4616.3,0.1732]
[1758163868450,2.21903336,4616.4,4616.3,0.1732]
[1758163868847,2.21903336,4616.4,4616.0,0.0216]
[1758163868848,2.43120352,4616.4,4616.0,0.0216]
[1758163869054,4.67749459,4616.1,4616.0,0.0216]
[1758163869247,5.43383336,4616.1,4616.0,0.0216]
[1758163869447,5.43383336,4616.1,4615.4,3.5024]
[1758163869448,5.13493336,4616.1,4615.4,3.5024]
[1758163869653,0.7128,4615.5,4615.4,3.6951]
[1758163869858,0.9308,4615.5,4615.4,3.6951]
[1758163870848,1.68769459,4615.5,4615.4,3.6951]
[1758163871050,0.9308,4615.5,4615.4,3.6951]
[1758163871251,0.9308,4615.5,4615.4,3.8856]
[1758163872655,1.0504,4615.5,4615.4,3.2078]
[1758163872855,4.79622654,4615.5,4614.7,0.2946]
[1758163873059,1.46969459,4614.8,4614.7,0.4873]
[1758163873254,1.68769459,4614.8,4614.7,0.5089]
[1758163876255,1.68769459,4614.8,4614.7,0.0216]
[1758163876256,2.98230271,4614.8,4614.7,0.0216]
[1758163876455,2.98230271,4614.8,4613.9,3.5024]
[1758163876456,0.2989,4614.7,4613.9,3.5024]
[1758163876660,1.46969459,4614.0,4613.9,0.2946]
[1758163876964,1.68769459,4614.0,4613.9,0.4873]
[1758163878660,1.68769459,4614.0,4613.9,0.6778]
[1758163879770,1.86105361,4614.0,4613.9,0.6778]
[1758163879968,1.34415361,4614.0,4613.9,0.6778]
[1758163880169,1.56215361,4614.0,4613.9,0.6778]
[1758163880562,1.86105361,4614.0,4613.9,0.6778]
[1758163881461,1.56215361,4614.0,4613.9,0.6778]
[1758163883362,3.2078,4614.4,4614.0,0.1174]
[1758163883563,0.2989,4615.4,4614.9,0.3832]
[1758163883763,0.93025361,4615.2,4615.1,0.4851]
[1758163883969,0.93025361,4615.2,4615.1,0.6778]
[1758163884162,0.0858,4616.0,4615.1,0.6778]
[1758163884365,0.7128,4615.8,4615.7,0.4873]
[1758163884667,2.17987297,4615.8,4615.7,0.2946]
[1758163884965,0.7128,4615.3,4615.2,3.2078]
[1758163885270,0.4139,4614.3,4614.2,0.1927]
[1758163885463,1.86105361,4614.3,4614.2,0.4873]
[1758163885866,3.2078,4615.0,4614.9,0.3832]
[1758163886066,0.218,4615.2,4615.1,0.6778]
[1758163886267,0.219,4615.4,4615.2,0.2946]
[1758163886464,0.2989,4615.9,4615.3,0.6778]
[1758163886659,0.2084,4615.4,4615.3,0.3832]
[1758163886869,0.4274,4615.4,4615.3,0.3832]
[1758163887064,0.4274,4615.4,4615.3,0.6778]
[1758163887466,1.35765361,4615.4,4615.3,0.6778]
[1758163887662,3.2078,4616.3,4615.3,0.3832]
[1758163887866,3.2078,4616.3,4616.0,0.7952]
[1758163888170,0.7128,4616.2,4616.1,0.4873]
[1758163889064,0.9318,4616.2,4616.1,0.4873]
[1758163889264,1.86205361,4616.2,4616.1,0.4873]
[1758163889570,0.9318,4616.2,4616.1,0.4873]
[1758163889771,1.86205361,4616.2,4616.1,0.6778]
[1758163890471,3.2078,4616.8,4616.1,0.6778]
[1758163890673,3.2078,4616.8,4616.6,0.3832]
[1758163890674,1.56315361,4616.7,4616.6,0.3832]
[1758163890873,1.86205361,4616.7,4616.6,0.6778]
[1758163892670,3.2078,4616.8,4616.7,0.2946]
[1758163892876,3.4268,4616.8,4616.7,0.6778]
[1758163893176,3.8407,4616.8,4616.3,0.2946]
[1758163893478,0.2084,4616.3,4616.2,3.591]
[1758163893867,0.2084,4616.3,4616.2,3.8856]
[1758163895071,0.7128,4616.3,4616.2,3.8856]
[1758163895776,0.7128,4616.3,4616.2,0.6778]
[1758163896671,0.4139,4616.3,4616.2,0.6778]
[1758163896978,0.4274,4616.3,4616.2,0.6778]
[1758163897176,0.9228,4616.3,4616.2,0.6778]
[1758163897865,0.9228,4616.3,4615.7,3.2078]
[1758163897866,0.6302,4616.3,4615.7,3.5113]
[1758163898072,0.6905,4615.8,4615.7,3.7054]
[1758163898270,0.6905,4615.8,4615.7,3.9138]
[1758163898473,0.3979,4615.8,4615.7,3.9138]
[1758163898977,0.6905,4615.8,4615.7,3.9138]
[1758163899170,0.6905,4615.8,4615.7,3.2078]
[1758163899474,0.1951,4615.3,4615.2,0.4976]
[1758163899677,0.1951,4615.3,4615.2,0.706]
[1758163902479,0.6905,4615.3,4615.2,0.4976]
[1758163902687,0.2926,4615.2,4614.7,0.3035]
[1758163902979,0.1951,4614.8,4614.7,0.706]
[1758163903776,0.219,4615.0,4614.7,0.706]
[1758163903975,0.219,4615.0,4614.9,0.4025]
[1758163904175,0.219,4615.0,4614.9,0.706]
[1758163904377,0.2926,4615.4,4614.9,0.706]
[1758163904583,0.6905,4615.7,4615.6,0.4976]
[1758163904786,1.44648621,4615.7,4615.6,0.706]
[1758163905480,1.44648621,4615.7,4615.6,0.4976]
[1758163905681,0.9095,4615.7,4615.6,0.4976]
[1758163906281,1.44649187,4615.7,4615.6,0.4976]
[1758163907085,3.2078,4615.8,4615.6,0.4025]
[1758163907281,0.9095,4615.7,4615.6,0.706]
[1758163907478,0.9095,4615.7,4615.1,0.3035]
[1758163907682,0.9095,4615.7,4615.0,0.2889]
[1758163907683,3.46626353,4615.2,4615.0,0.1733]
[1758163907886,0.9095,4615.1,4615.0,0.3674]
[1758163908181,0.9095,4615.1,4615.0,0.5758]
[1758163908386,0.9095,4615.1,4615.0,0.706]
[1758163908581,0.2926,4615.0,4614.7,0.3035]
[1758163908788,0.3979,4614.8,4614.7,0.706]
[1758163908979,0.6179,4614.8,4614.7,0.706]
[1758163910283,0.2926,4614.7,4614.6,3.2078]
[1758163910486,0.6905,4614.7,4614.6,3.6103]
[1758163911087,0.6905,4614.7,4614.6,3.9138]
[1758163911382,0.22,4614.8,4614.6,3.9138]
[1758163911586,3.2078,4615.3,4614.8,0.3035]
[1758163911778,0.95202733,4615.2,4615.1,0.4025]
[1758163911985,0.95202733,4615.2,4615.1,0.706]
[1758163914191,0.75692733,4615.2,4615.1,0.706]
[1758163915386,0.53792733,4615.2,4615.1,0.706]
[1758163915789,0.73302733,4615.2,4615.1,0.706]
[1758163916179,0.93582733,4615.2,4615.1,0.706]
[1758163916488,4.29679086,4615.2,4615.1,0.4976]
[1758163917689,4.29679086,4615.2,4615.1,0.706]
[1758163918483,4.29679086,4615.2,4614.6,3.2078]
[1758163918688,0.1951,4614.7,4614.6,3.9138]
[1758163920187,0.7135,4614.7,4614.5,0.0216]
[1758163920387,0.9254,4614.6,4614.5,0.5089]
[1758163920794,0.9254,4614.6,4614.5,0.4873]
[1758163921095,1.14798301,4614.6,4614.1,0.2913]
[1758163921394,0.196,4614.1,4614.0,4.0157]
[1758163925492,0.3156,4614.5,4614.1,0.2913]
[1758163925700,0.7064,4614.5,4614.4,0.401]
[1758163925899,1.24470644,4614.5,4614.4,0.699]
[1758163926100,0.73430644,4614.5,4614.4,0.699]
[1758163926296,3.705,4615.3,4615.2,0.6938]
[1758163926501,4.69894005,4615.3,4615.2,0.6938]
[1758163926693,4.89654005,4615.3,4615.2,0.6938]
[1758163927100,4.89654005,4615.3,4615.2,0.5036]
[1758163927301,7.96490358,4615.3,4614.6,0.298]
[1758163927503,0.6948,4614.7,4614.6,0.6938]
[1758163927803,1.46974005,4614.7,4614.6,0.6938]
[1758163928203,1.17634005,4614.7,4614.1,0.298]
[1758163928404,0.2038,4614.2,4614.1,0.6938]
[1758163931698,3.76316353,4614.2,4614.1,0.298]
[1758163931897,3.76316353,4614.2,4613.5,3.5184]
[1758163931898,0.6948,4613.7,4613.6,0.5036]
[1758163932107,0.4014,4613.7,4613.6,0.6938]
[1758163933504,0.219,4613.8,4613.6,0.6938]
[1758163934008,0.6948,4614.0,4613.9,0.3958]
[1758163934304,1.68892665,4614.0,4613.9,0.6938]
[1758163934806,1.68892665,4614.0,4613.9,0.5036]
[1758163935604,0.2934,4613.9,4613.6,0.298]
[1758163935802,0.6948,4613.6,4613.5,0.0216]
[1758163936101,0.6948,4613.6,4613.2,0.298]
[1758163936102,1.6888476,4613.6,4613.2,0.298]
[1758163936404,0.2038,4613.3,4613.2,0.6938]
[1758163936911,0.4228,4613.6,4613.5,0.8154]
[1758163937218,0.99367945,4613.6,4613.5,0.8154]
[1758163937514,0.4014,4613.2,4613.1,0.3958]
[1758163937714,1.62536161,4613.2,4613.1,0.3958]
[1758163938214,0.93056161,4613.2,4613.1,0.6938]
[1758163938413,0.93056161,4613.5,4613.2,0.298]
[1758163938604,0.93056161,4613.5,4613.2,0.5036]
[1758163938605,0.6948,4613.3,4613.2,0.5036]
[1758163938811,0.4228,4613.3,4613.2,0.6938]
[1758163939007,0.2038,4613.3,4613.2,0.6938]
[1758163939211,0.219,4613.3,4613.2,0.6938]
[1758163939618,0.2038,4613.6,4613.5,0.1216]
[1758163939806,0.96093819,4613.6,4613.5,0.5174]
[1758163940318,0.96093819,4613.6,4613.5,0.8154]
[1758163940912,0.74193819,4613.6,4613.5,0.8154]
[1758163941112,0.4228,4613.6,4613.5,0.8154]
[1758163941715,3.2078,4614.0,4613.5,0.8154]
[1758163941916,3.4116,4614.5,4614.4,0.6938]
[1758163942119,5.16309356,4614.5,4614.4,0.6938]
[1758163942418,5.65409356,4614.5,4614.4,0.6938]
[1758163942819,1.73629356,4614.5,4614.4,0.6938]
[1758163943018,0.97702138,4614.5,4614.4,0.6938]
[1758163943921,1.18082138,4614.5,4614.4,0.6938]
[1758163944317,0.75802138,4614.6,4614.5,0.4196]
[1758163944621,0.97802138,4614.6,4614.5,0.8154]
[1758163945310,1.29639466,4614.6,4614.5,0.8154]
[1758163945513,1.51639466,4614.6,4614.5,0.8154]
[1758163945923,3.2078,4615.0,4614.5,1.57342138]
[1758163946221,0.97802138,4615.0,4614.9,3.9016]
[1758163946413,0.22,4615.0,4614.9,3.9016]
[1758163946619,0.96182138,4615.4,4615.3,0.6938]
[1758163946817,1.95731245,4615.4,4615.3,0.6938]
[1758163947217,2.44831245,4615.4,4615.3,0.6938]
[1758163948420,2.22831245,4615.4,4615.3,0.6938]
[1758163948620,2.44831245,4615.4,4615.3,0.6938]
[1758163949318,0.2934,4614.6,4614.4,3.5058]
[1758163949526,2.9987942,4614.5,4613.7,3.5058]
[1758163949720,1.15942138,4613.8,4613.7,3.9016]
[1758163949922,1.45282138,4613.8,4613.7,3.9016]
[1758163950514,1.99193796,4613.8,4613.7,3.9016]
[1758163951519,1.99193796,4613.8,4613.2,3.2078]
[1758163951722,0.6948,4613.4,4613.3,0.3958]
[1758163952020,0.6948,4613.4,4613.3,0.2056]
[1758163952220,0.2038,4613.4,4613.3,0.3958]
[1758163952528,0.2038,4613.4,4613.3,0.6938]
[1758163952725,0.22,4613.5,4613.4,0.6938]
[1758163953226,0.6948,4614.1,4614.0,0.5036]
[1758163953424,1.69040781,4614.1,4614.0,0.5036]
[1758163953726,1.45389991,4614.1,4614.0,0.2056]
[1758163954423,1.45389991,4614.1,4614.0,0.5036]
[1758163954624,0.74289991,4614.1,4614.0,0.8154]
[1758163954927,0.75909991,4614.1,4614.0,0.8154]
[1758163955129,0.96289991,4614.1,4614.0,0.8154]
[1758163955827,0.75909991,4614.1,4614.0,0.8154]
[1758163956322,0.96399991,4614.1,4614.0,0.8154]
[1758163956727,0.4249,4614.1,4614.0,0.8154]
[1758163958824,0.4249,4614.1,4613.7,3.2294]
[1758163958825,0.3959,4613.8,4613.7,0.0216]
[1758163959023,3.8479375,4613.8,4613.7,0.0216]
[1758163959421,1.46266954,4613.8,4613.7,0.5233]
[1758163959726,0.9236,4613.8,4613.7,0.7274]
[1758163960522,0.6159,4613.8,4613.7,0.7274]
[1758163960722,0.2049,4613.8,4613.7,0.7274]
[1758163961017,0.4249,4613.8,4613.7,0.7274]
[1758163961328,0.22,4613.8,4613.7,0.7274]
[1758163961519,0.3077,4614.2,4613.7,3.9352]
[1758163961720,0.22,4614.1,4613.8,0.3028]
[1758163961916,0.4249,4614.1,4614.0,0.8229]
[1758163962324,0.2049,4614.1,4614.0,0.8229]
[1758163962525,0.4249,4614.1,4614.0,0.8229]
[1758163963329,3.4127,4614.4,4614.3,0.403]
[1758163963519,4.90636446,4614.4,4614.3,0.7058]
[1758163965430,4.59866446,4614.4,4614.3,0.7058]
[1758163965629,1.39086446,4614.4,4614.3,0.7058]
[1758163965927,0.75911874,4614.4,4614.3,0.7058]
[1758163966125,3.4127,4614.9,4614.8,0.403]
[1758163966325,4.17188752,4614.9,4614.8,0.7058]
[1758163966529,4.67058752,4614.9,4614.8,0.7058]
[1758163967328,4.90648063,4614.9,4614.2,3.2078]
[1758163967534,0.3959,4614.3,4614.2,3.7095]
[1758163967731,0.7036,4614.3,4614.2,3.9136]
[1758163968035,0.7036,4614.3,4613.8,0.3028]
[1758163968036,3.30886796,4614.3,4613.8,0.3028]
[1758163968234,0.7036,4613.6,4613.5,0.6751]
[1758163968432,0.9236,4613.6,4613.5,0.6751]
[1758163969932,0.6159,4613.6,4613.5,0.9963]
[1758163970538,0.7187,4613.7,4613.6,0.7058]
[1758163970736,0.9236,4613.7,4613.6,0.7058]
[1758163972438,0.22,4613.7,4613.6,0.7058]
[1758163972739,3.2078,4614.4,4614.0,0.8229]
[1758163972936,1.20036343,4614.3,4614.2,0.403]
[1758163973241,1.20036343,4614.3,4614.2,0.7058]
[1758163973242,1.39136343,4614.3,4614.2,0.7058]
[1758163973435,1.46307018,4614.3,4614.2,0.7058]
[1758163974345,1.15537018,4614.3,4614.2,0.7058]
[1758163974538,1.46307018,4614.3,4614.2,0.7058]
[1758163974937,1.6990772,4614.3,4614.2,0.7058]
[1758163976140,1.3913772,4614.3,4614.2,0.7058]
[1758163976345,0.53947018,4614.3,4614.2,0.7058]
[1758163976554,0.219,4614.3,4614.2,0.7058]
[1758163977039,0.4239,4614.3,4614.2,0.7058]
[1758163977344,1.479421,4614.3,4614.2,0.7058]
[1758163977543,1.698421,4614.3,4614.2,0.7058]
[1758163977743,2.23734265,4614.3,4614.2,0.7058]
[1758163977934,2.45734265,4614.3,4614.2,0.7058]
[1758163978337,2.45734265,4614.3,4614.2,0.5017]
[1758163978638,0.2947,4614.2,4614.0,0.2858]
[1758163978838,1.16192165,4614.1,4614.0,0.8201]
[1758163979031,0.6987,4614.0,4613.9,3.4075]
[1758163979236,0.9187,4614.0,4613.9,3.9024]
[1758163980841,0.22,4614.0,4613.9,3.9024]
[1758163983048,0.4268,4614.0,4613.9,3.9024]
[1758163983346,0.22,4614.0,4613.9,4.66032165]
[1758163983542,0.97692165,4614.2,4614.1,0.2858]
[1758163983848,1.72358676,4614.2,4614.1,0.6946]
[1758163984043,0.96566511,4614.2,4614.1,0.6946]
[1758163984245,0.75886511,4614.2,4614.1,0.6946]
[1758163984548,1.72358676,4614.2,4614.1,0.6946]
[1758163985149,0.74666511,4614.2,4614.1,0.6946]
[1758163985346,0.219,4614.3,4614.1,0.6946]
[1758163985655,0.219,4614.3,4614.0,0.88342165]
[1758163985656,3.4094,4614.9,4614.8,0.4022]
[1758163985844,5.67082624,4614.9,4614.8,0.688]
[1758163986351,5.67082624,4614.9,4614.6,0.2858]
[1758163986548,1.47842165,4614.6,4614.5,0.8107]
[1758163986748,2.01826216,4614.6,4614.5,0.8107]
[1758163987749,2.01826216,4614.6,4614.5,0.688]
[1758163987949,2.01826216,4614.6,4614.5,0.4831]
[1758163988454,1.70506216,4614.6,4614.5,0.8107]
[1758163990054,2.01826216,4614.6,4614.5,0.8107]
[1758163991552,2.23726216,4614.6,4614.5,0.8107]
[1758163992646,2.23726216,4614.6,4614.5,0.688]
[1758163992846,2.23726216,4614.6,4614.0,0.1255]
[1758163993048,0.95952165,4614.2,4614.1,0.688]
[1758163993443,1.27272165,4614.2,4614.1,0.688]
[1758163993642,1.27272165,4614.2,4613.9,3.3811]
[1758163993643,0.835,4614.0,4613.9,3.3811]
[1758163993848,1.37476714,4614.0,4613.9,0.1733]
[1758163994851,5.59149714,4614.0,4613.9,0.1733]
[1758163995054,6.57512243,4614.0,4613.4,0.0216]
[1758163995354,2.1980433,4613.5,4613.4,0.0216]
[1758163995552,2.95681044,4613.5,4613.4,0.0216]
[1758163996346,2.19888879,4613.5,4613.4,0.0216]
[1758163996742,2.95681044,4613.5,4613.4,0.0216]
[1758163996949,2.95681044,4613.5,4612.9,3.2078]
[1758163996950,0.4073,4613.0,4612.9,3.2078]
[1758163997148,0.4073,4612.7,4612.6,0.688]
[1758163997855,0.6822,4612.7,4612.6,0.1973]
[1758163998055,0.95952165,4612.7,4612.6,0.688]
[1758163998251,1.44012165,4612.7,4612.6,0.4831]
[1758163998661,1.44012165,4612.7,4612.6,0.2858]
[1758163998851,1.97909403,4612.7,4612.6,0.2858]
[1758163999358,0.6822,4612.5,4612.4,3.4936]
[1758163999553,2.5084433,4612.5,4612.4,3.2078]
[1758163999859,0.4073,4612.1,4612.0,0.6058]
[1758164000157,1.38422165,4612.1,4612.0,0.6058]
[1758164000357,1.38422165,4612.1,4612.0,0.8107]
[1758164001859,1.55729005,4612.1,4612.0,0.8107]
[1758164005856,0.2749,4612.4,4612.1,0.2858]
[1758164005857,0.93099005,4612.4,4612.1,0.2858]
[1758164006060,0.93099005,4613.4,4612.6,0.2858]
[1758164006264,0.6263,4613.3,4613.2,0.4022]
[1758164006458,0.6263,4613.3,4613.2,0.688]
[1758164006653,0.9012,4613.3,4613.2,0.4831]
[1758164008973,1.2194278,4613.3,4613.2,0.2858]
[1758164009162,0.9012,4613.3,4613.2,0.2858]
[1758164009367,0.9012,4613.3,4613.2,0.4831]
[1758164010378,0.6822,4613.3,4613.2,0.4831]
[1758164010674,0.9012,4613.3,4613.2,0.4831]
[1758164014377,0.6263,4613.3,4613.2,0.688]
[1758164014775,2.169,4613.2,4611.5,0.1227]
[1758164014980,4.13879005,4611.6,4610.8,0.1227]
[1758164015274,3.2078,4610.6,4610.5,0.5249]
[1758164015772,4.13879005,4610.6,4610.5,0.5249]
[1758164015970,4.69714814,4610.6,4610.5,0.5249]
[1758164017067,4.69714814,4610.6,4610.5,0.8244]
[1758164017272,4.9793114,4610.6,4610.5,0.8244]
[1758164017473,5.2143114,4610.6,4610.5,0.4222]
[1758164017665,6.14530145,4610.6,4610.0,0.1227]
[1758164017875,5.0697801,4610.1,4610.0,0.1227]
[1758164018074,5.0697801,4610.1,4610.0,0.1146]
[1758164018075,6.14530145,4610.1,4610.0,0.1146]
[1758164018275,6.14530145,4610.1,4609.5,0.1227]
[1758164018477,5.0697801,4609.6,4609.5,0.1227]
[1758164019178,5.3037801,4609.6,4609.5,0.1227]
[1758164019479,5.3037801,4609.6,4609.5,0.3145]
[1758164019676,5.3037801,4609.6,4609.5,0.614]
[1758164019879,6.51970481,4609.6,4609.5,0.614]
[1758164020280,6.80139186,4609.6,4609.5,0.614]
[1758164021077,6.80139186,4609.6,4609.5,0.82]
[1758164022178,7.37406517,4609.6,4609.5,0.82]
[1758164023275,7.37406517,4609.6,4609.5,0.614]
[1758164023476,7.37406517,4609.6,4609.5,0.4222]
[1758164025276,7.37406517,4609.6,4609.5,0.1227]
[1758164025481,11.37406517,4609.6,4609.2,0.0216]
[1758164025683,0.85436036,4609.5,4609.2,0.0216]
[1758164025983,1.08836036,4609.4,4608.8,0.2995]
[1758164026177,3.07790481,4609.1,4609.0,0.4222]
[1758164026372,4.16626517,4609.1,4609.0,0.4222]
[1758164028882,5.86900286,4609.1,4609.0,0.1227]
[1758164029279,5.86900286,4609.1,4609.0,0.4222]
[1758164032484,5.86900286,4609.1,4608.5,0.4141]
[1758164032685,6.28570481,4608.6,4608.5,0.4141]
[1758164032885,7.37306517,4608.6,4608.5,0.4141]
[1758164035790,7.37306517,4608.6,4608.5,0.8119]
[1758164039192,7.37206517,4608.6,4608.5,0.8119]
[1758164039888,5.22691102,4608.6,4608.5,0.4141]
[1758164041494,5.22691102,4608.6,4608.5,0.6129]
[1758164042689,5.22691102,4608.6,4608.5,0.4141]
[1758164043087,5.22691102,4608.6,4608.5,0.6129]
[1758164044697,5.22691102,4608.6,4608.5,0.4141]
[1758164045094,5.22691102,4608.6,4608.5,0.6129]
[1758164045499,5.20550393,4608.6,4608.5,0.6129]
[1758164045697,5.20550393,4608.6,4608.5,0.4141]
[1758164046297,5.20550393,4608.6,4608.5,0.6194]
[1758164048893,5.20550393,4608.6,4608.5,0.8267]
[1758164050094,5.20550393,4608.6,4608.5,0.4141]
[1758164051387,4.27275327,4608.6,4608.5,0.8267]
[1758164051604,5.20550393,4608.6,4608.5,0.8267]
[1758164052002,5.20550393,4608.6,4608.5,0.4141]
[1758164053802,5.20550393,4608.6,4608.5,0.6194]
[1758164054796,4.04075327,4608.6,4608.5,4.8267]
[1758164055099,4.04075327,4608.6,4608.5,5.04369]
[1758164055703,4.04075327,4608.6,4608.5,4.8267]
[1758164056400,4.97350393,4608.6,4608.5,4.8267]
[1758164056910,4.04075327,4608.6,4608.5,4.8267]
[1758164057105,4.97350393,4608.6,4608.5,4.8267]
[1758164059513,4.04075327,4608.6,4608.5,4.8267]
[1758164059804,4.97350393,4608.6,4608.5,4.8267]
[1758164061702,4.97350393,4608.6,4608.5,0.8267]
[1758164061901,4.80064201,4608.6,4608.5,0.8267]
[1758164065501,4.80064201,4608.6,4608.5,0.4141]
[1758164065909,4.80064201,4608.6,4608.3,0.2953]
[1758164066108,0.75988874,4608.4,4608.3,0.2953]
[1758164066310,1.59284201,4608.4,4608.3,0.2953]
[1758164068415,1.59284201,4608.4,4608.3,0.5006]
[1758164069710,1.59284201,4608.4,4608.3,0.2953]
[1758164070510,0.83295327,4608.4,4608.3,0.2953]
[1758164070716,1.59284201,4608.4,4608.3,0.5006]
[1758164072111,0.83295327,4608.4,4608.3,0.7079]
[1758164072516,1.33256205,4608.4,4608.3,0.7079]
[1758164073715,3.2078,4608.6,4608.5,0.1144]
[1758164073914,3.76082377,4608.6,4608.5,0.8223]
[1758164077018,3.76082377,4608.6,4608.5,1.58218874]
[1758164077217,3.2078,4608.6,4608.5,1.58218874]
[1758164077419,3.2078,4608.6,4608.5,0.8223]
[1758164078008,3.2078,4608.6,4608.5,1.58218874]
[1758164078521,3.2078,4608.6,4608.5,0.8223]
[1758164079620,3.2078,4608.6,4608.5,1.58218874]
[1758164082323,3.7612802,4608.6,4608.5,1.58218874]
[1758164084826,3.2078,4609.5,4609.4,0.5011]
[1758164085126,3.76144779,4609.5,4609.4,0.5011]
[1758164086226,4.52133653,4609.5,4609.4,0.2978]
[1758164086628,4.52133653,4609.5,4609.1,0.2978]
[1758164086928,0.75988874,4609.1,4609.0,0.4168]
[1758164087126,0.75988874,4609.1,4609.0,0.6201]
[1758164087523,0.75988874,4609.1,4609.0,0.8267]
[1758164090919,1.51977748,4609.1,4609.0,0.4168]
[1758164091118,0.553482,4609.1,4609.0,0.4168]
[1758164091331,2.07325948,4609.1,4609.0,0.4168]
[1758164094133,1.31337074,4609.1,4609.0,0.4168]
[1758164094630,0.553482,4609.1,4609.0,0.6201]
[1758164094838,1.31337074,4609.1,4609.0,0.6201]
[1758164097039,1.31337074,4609.1,4609.0,0.4168]
[1758164097236,2.07325948,4609.1,4609.0,0.4168]
[1758164097440,1.31337074,4609.1,4609.0,0.4168]
[1758164098839,1.31337074,4609.1,4609.0,0.6201]
[1758164100230,0.553482,4609.1,4609.0,0.8221]
[1758164100437,1.31337074,4609.1,4609.0,0.8221]
[1758164100831,0.553482,4609.1,4609.0,0.8221]
[1758164101839,3.2078,4610.1,4610.0,0.8332]
[1758164102051,4.75144407,4610.1,4610.0,0.8332]
[1758164102437,3.76186014,4610.1,4610.0,0.8332]
[1758164102946,4.52174888,4610.1,4610.0,0.8332]
[1758164103444,5.28163762,4610.1,4610.0,0.4296]